bitfinex/quotes_SOLUSD_20251231
["timestamp","ask_amount","ask_price","bid_price","bid_amount"]
[1767198718061,22.5560818,125.38,125.31,0.1]
[1767198718062,3.18350654,125.32,125.31,0.1]
[1767198718367,3.86750095,125.32,125.29,0.1]
[1767198720172,22.55775057,125.35,125.29,0.80496445]
[1767198720173,3.18350654,125.33,125.29,0.80496445]
[1767198720840,3.86750095,125.33,125.29,0.80496445]
[1767198721040,3.86750095,125.32,125.29,0.1]
[1767198721249,3.18350654,125.31,125.29,0.1]
[1767198721481,0.68399441,125.29,125.26,0.70496445]
[1767198721662,0.68399441,125.32,125.28,0.70496445]
[1767198721842,3.86750095,125.32,125.28,0.70496445]
[1767198722469,0.68399441,125.35,125.3,3.18350654]
[1767198722664,3.18350654,125.34,125.27,7.9825311]
[1767198722851,3.18350654,125.33,125.29,0.70496445]
[1767198723051,0.68399441,125.34,125.29,3.18350654]
[1767198723254,3.86750095,125.34,125.29,3.18350654]
[1767198723471,3.86750095,125.33,125.29,0.70496445]
[1767198723765,0.68399441,125.33,125.29,3.18350654]
[1767198723957,0.68399441,125.33,125.3,0.70496445]
[1767198724156,3.86750095,125.33,125.3,0.70496445]
[1767198724664,3.18350654,125.33,125.3,0.70496445]
[1767198725749,3.86750095,125.34,125.3,0.70496445]
[1767198725954,3.18350654,125.35,125.31,0.70496445]
[1767198726155,3.86750095,125.35,125.31,0.70496445]
[1767198726854,3.18350654,125.34,125.31,0.70496445]
[1767198727054,0.68399441,125.35,125.31,0.70496445]
[1767198727257,3.18350654,125.34,125.31,0.70496445]
[1767198728073,3.86750095,125.35,125.31,0.70496445]
[1767198731155,0.68399441,125.33,125.29,3.88847099]
[1767198731364,3.86750095,125.34,125.3,0.70496445]
[1767198732883,0.68399441,125.32,125.28,23.2668088]
[1767198733375,3.86750095,125.33,125.29,0.70496445]
[1767198733574,3.86750095,125.32,125.27,3.18350654]
[1767198733780,3.86750095,125.31,125.27,0.70496445]
[1767198734781,3.18350654,125.3,125.27,0.70496445]
[1767198734955,3.86750095,125.3,125.27,0.70496445]
[1767198735376,0.68399441,125.28,125.25,0.1]
[1767198735561,3.86750095,125.28,125.25,0.1]
[1767198736195,0.68399441,125.29,125.25,0.80496445]
[1767198736363,3.86750095,125.3,125.25,0.80496445]
[1767198736561,3.86750095,125.3,125.26,0.70496445]
[1767198737184,3.86750095,125.29,125.25,0.80496445]
[1767198737873,3.18350654,125.31,125.27,0.70496445]
[1767198738079,3.18350654,125.3,125.27,0.70496445]
[1767198739573,3.86858015,125.3,125.27,0.70496445]
[1767198741090,3.86858015,125.31,125.27,0.70496445]
[1767198741666,3.18350654,125.3,125.25,0.1]
[1767198741986,3.89972795,125.3,125.26,0.7009625]
[1767198742362,0.71622141,125.3,125.26,0.7009625]
[1767198742562,3.89972795,125.3,125.26,0.7009625]
[1767198743060,0.71622141,125.3,125.26,0.7009625]
[1767198743373,14.58,125.32,125.27,0.7009625]
[1767198743374,0.71622141,125.31,125.27,0.7009625]
[1767198743578,3.89972795,125.31,125.27,0.7009625]
[1767198744273,3.89972795,125.3,125.27,0.7009625]
[1767198744471,3.89972795,125.3,125.26,0.7009625]
[1767198744673,0.71622141,125.29,125.26,0.7009625]
[1767198745264,3.18350654,125.3,125.26,0.7009625]
[1767198745879,3.89972795,125.3,125.26,0.7009625]
[1767198750695,5.92833838,125.29,125.26,0.7009625]
[1767198750867,3.89972795,125.3,125.26,0.7009625]
[1767198751868,0.71622141,125.3,125.26,0.7009625]
[1767198752070,3.89972795,125.3,125.26,0.7009625]
[1767198752269,5.93144805,125.29,125.26,0.7009625]
[1767198752471,0.71622141,125.3,125.26,0.7009625]
[1767198752768,5.93130435,125.29,125.26,0.7009625]
[1767198752989,3.89972795,125.3,125.26,0.7009625]
[1767198753190,9.83089717,125.29,125.25,15.3809625]
[1767198753401,3.89972795,125.29,125.26,0.7009625]
[1767198753603,0.71622141,125.27,125.25,0.1]
[1767198753972,3.18350654,125.28,125.25,0.1]
[1767198754188,3.89972795,125.28,125.25,0.1]
[1767198755300,3.89972795,125.28,125.25,0.8009625]
[1767198755496,3.18350654,125.28,125.25,0.8009625]
[1767198755994,0.71622141,125.29,125.25,0.8009625]
[1767198756199,3.18350654,125.28,125.25,0.8009625]
[1767198756697,0.71622141,125.29,125.25,0.8009625]
[1767198756876,3.18350654,125.28,125.25,0.8009625]
[1767198759909,3.18350654,125.29,125.25,0.8009625]
[1767198760224,0.71622141,125.3,125.25,0.8009625]
[1767198760392,9.11444843,125.29,125.25,0.8009625]
[1767198760717,3.18350654,125.29,125.25,0.8009625]
[1767198762715,3.18350654,125.28,125.25,0.8009625]
[1767198763784,0.71622141,125.29,125.25,0.8009625]
[1767198764212,3.18350654,125.28,125.25,0.8009625]
[1767198766101,3.89972795,125.26,125.25,0.1]
[1767198766296,3.89972795,125.26,125.24,6.50002269]
[1767198766297,9.11666901,125.26,125.24,6.50002269]
[1767198766533,4.98332615,125.26,125.24,6.50002269]
[1767198767931,5.69954756,125.27,125.24,7.18162062]
[1767198768838,5.66317501,125.26,125.24,6.50002269]
[1767198769523,5.93031145,125.25,125.24,6.50002269]
[1767198769925,5.66317501,125.26,125.24,6.50002269]
[1767198771215,0.67984886,125.26,125.24,6.50002269]
[1767198771422,5.70602329,125.27,125.24,6.50002269]
[1767198771608,5.70602329,125.27,125.24,7.18314717]
[1767198772533,5.93105566,125.26,125.24,7.18314717]
[1767198772711,5.70602329,125.27,125.24,7.18314717]
[1767198773825,4.98332615,125.26,125.24,7.18314717]
[1767198774137,5.70602329,125.27,125.24,7.18314717]
[1767198774334,5.93301836,125.26,125.24,7.18314717]
[1767198774537,5.70602329,125.27,125.24,7.18314717]
[1767198774834,5.93381824,125.26,125.24,7.18314717]
[1767198775034,5.70602329,125.27,125.24,7.18314717]
[1767198775220,5.93393873,125.26,125.24,7.18314717]
[1767198775411,5.70602329,125.27,125.24,7.18314717]
[1767198775612,5.93562066,125.26,125.24,7.18314717]
[1767198775814,5.70602329,125.27,125.24,7.18314717]
[1767198776123,5.93562154,125.26,125.24,7.18314717]
[1767198776322,5.70602329,125.27,125.24,7.18314717]
[1767198776509,5.70602329,125.28,125.25,0.68312448]
[1767198776715,5.93701089,125.27,125.25,0.65398827]
[1767198776916,5.70602329,125.28,125.25,0.65398827]
[1767198777125,5.93578539,125.27,125.25,0.65398827]
[1767198777433,5.93788765,125.26,125.25,0.65398827]
[1767198777649,5.70602329,125.28,125.25,0.65398827]
[1767198777838,5.93850646,125.27,125.25,0.65398827]
[1767198778016,4.98332615,125.27,125.25,0.65398827]
[1767198778332,5.93844846,125.26,125.24,6.50002269]
[1767198778537,4.98332615,125.27,125.24,6.50002269]
[1767198778746,5.93986798,125.26,125.24,6.50002269]
[1767198778918,5.70602329,125.28,125.25,0.68312448]
[1767198779117,5.93987409,125.27,125.25,0.68312448]
[1767198779325,5.93987409,125.26,125.25,0.68312448]
[1767198779535,3.81572602,125.26,125.25,0.68312448]
[1767198779749,0.72269714,125.3,125.25,4.98332615]
[1767198779928,5.70602329,125.29,125.24,19.46747754]
[1767198780126,5.70602329,125.29,125.24,11.48334884]
[1767198780432,0.72269714,125.27,125.24,6.50002269]
[1767198781520,5.70602329,125.27,125.24,6.50002269]
[1767198781721,0.72269714,125.26,125.24,6.50002269]
[1767198785272,0.72269714,125.28,125.24,11.48334884]
[1767198785450,5.70602329,125.29,125.24,19.46785984]
[1767198786523,0.72269714,125.29,125.24,19.46785984]
[1767198786851,5.70602329,125.29,125.24,19.46785984]
[1767198788048,0.72269714,125.29,125.24,19.46785984]
[1767198788239,5.70602329,125.29,125.24,19.46785984]
[1767198789144,0.72269714,125.28,125.24,19.46785984]
[1767198791649,22.57969888,125.32,125.26,4.98332615]
[1767198791650,0.72269714,125.31,125.26,4.98332615]
[1767198791850,6.66702075,125.3,125.26,4.98332615]
[1767198792056,5.94432361,125.29,125.26,4.98332615]
[1767198792645,5.94432361,125.29,125.24,49.04620727]
[1767198792831,5.94432361,125.29,125.27,4.98332615]
[1767198793028,4.98332615,125.32,125.27,4.98332615]
[1767198793230,6.66789628,125.31,125.28,4.98332615]
[1767198793437,5.94519914,125.3,125.27,4.98332615]
[1767198793754,6.66789628,125.3,125.26,4.98332615]
[1767198793938,5.94519914,125.29,125.27,4.98332615]
[1767198795259,0.72269714,125.3,125.27,4.98332615]
[1767198795460,0.72269714,125.3,125.27,12.96601429]
[1767198795647,0.72269714,125.31,125.27,12.96601429]
[1767198795850,5.94701272,125.3,125.27,12.96601429]
[1767198796059,0.72269714,125.31,125.27,12.96601429]
[1767198796246,5.94700994,125.3,125.27,12.96601429]
[1767198796448,0.72269714,125.31,125.27,12.96601429]
[1767198796651,5.94672624,125.3,125.27,12.96601429]
[1767198796968,0.72269714,125.31,125.27,12.96601429]
[1767198797169,5.946715,125.3,125.27,12.96601429]
[1767198797373,0.72269714,125.31,125.27,12.96601429]
[1767198797566,0.72269714,125.33,125.3,4.98332615]
[1767198797773,0.72269714,125.37,125.32,4.98332615]
[1767198798061,5.94870815,125.36,125.33,4.98332615]
[1767198798263,0.72269714,125.36,125.31,14.6]
[1767198798468,0.72269714,125.36,125.31,19.58332615]
[1767198799064,0.72269714,125.36,125.31,4.98332615]
[1767198799269,0.70312066,125.35,125.31,12.9635019]
[1767198799963,0.70312066,125.35,125.3,14.58]
[1767198799964,5.68644681,125.35,125.3,27.54410689]
[1767198800167,0.70312066,125.35,125.3,27.54410689]
[1767198800368,0.70312066,125.35,125.31,4.98332615]
[1767198802647,5.64138999,125.35,125.3,27.54410689]
[1767198802871,0.65806384,125.35,125.3,27.54410689]
[1767198803059,0.65806384,125.35,125.31,12.96345036]
[1767198803253,0.65806384,125.36,125.32,4.98332615]
[1767198803456,4.98332615,125.36,125.31,12.96345036]
[1767198803658,0.65806384,125.35,125.31,12.96345036]
[1767198803972,0.65806384,125.35,125.31,12.96339834]
[1767198804168,0.65806384,125.35,125.32,4.98332615]
[1767198804477,0.65806384,125.35,125.31,12.96339834]
[1767198804652,0.65806384,125.35,125.31,4.98332615]
[1767198805457,0.65806384,125.35,125.31,12.96342709]
[1767198806369,0.65806384,125.35,125.3,22.56082743]
[1767198806573,0.65806384,125.34,125.3,19.56332615]
[1767198806769,0.65806384,125.34,125.3,27.54409999]
[1767198806978,0.65806384,125.34,125.3,12.96409999]
[1767198807276,0.65806384,125.34,125.31,4.98332615]
[1767198807877,0.65806384,125.38,125.31,12.96350032]
[1767198808174,0.65806384,125.36,125.32,4.98332615]
[1767198808364,4.98332615,125.36,125.31,4.98332615]
[1767198808548,0.65806384,125.35,125.31,4.98332615]
[1767198808754,0.65806384,125.35,125.31,12.96347662]
[1767198810152,0.65806384,125.35,125.31,4.98332615]
[1767198811458,0.65806384,125.35,125.31,12.9633808]
[1767198814586,0.65806384,125.35,125.32,4.98332615]
[1767198815183,0.65806384,125.35,125.31,4.98332615]
[1767198817282,0.65806384,125.35,125.31,12.9634681]
[1767198818181,0.65806384,125.35,125.31,4.98332615]
[1767198818684,0.65806384,125.35,125.32,4.98332615]
[1767198823183,0.65806384,125.38,125.34,4.98332615]
[1767198823590,0.65806384,125.38,125.35,4.98332615]
[1767198824182,0.65806384,125.38,125.34,4.98332615]
[1767198824684,0.2,125.39,125.37,4.98332615]
[1767198824874,0.85806384,125.39,125.37,4.98332615]
[1767198825289,0.85806384,125.39,125.34,12.96120492]
[1767198825290,0.85806384,125.39,125.36,4.98332615]
[1767198825869,0.85806384,125.39,125.34,27.92362633]
[1767198826088,0.85806384,125.39,125.36,4.98332615]
[1767198826991,0.85806384,125.39,125.37,4.98332615]
[1767198827681,0.2,125.39,125.37,4.98332615]
[1767198827884,0.65806384,125.42,125.38,4.98332615]
[1767198828061,0.65806384,125.42,125.39,4.98332615]
[1767198828470,0.65806384,125.42,125.39,3.17996763]
[1767198830495,0.65806384,125.42,125.38,22.55537768]
[1767198830674,0.65806384,125.42,125.39,3.17996763]
[1767198832300,0.65806384,125.42,125.38,14.58]
[1767198832496,0.65806384,125.42,125.38,17.75996763]
[1767198832678,0.65806384,125.42,125.38,25.73567899]
[1767198833794,0.65806384,125.42,125.38,14.58]
[1767198834102,0.66780539,125.4,125.37,14.54996984]
[1767198834277,0.66780539,125.4,125.36,11.15646457]
[1767198834473,0.66780539,125.37,125.34,7.97824181]
[1767198834902,0.66780539,125.37,125.34,11.15820944]
[1767198836478,0.66780539,125.37,125.33,22.55862891]
[1767198837107,0.66780539,125.37,125.33,25.73859654]
[1767198841605,0.66780539,125.36,125.33,14.58]
[1767198841812,0.66780539,125.36,125.33,17.75996763]
[1767198842110,0.66780539,125.36,125.33,25.73888547]
[1767198842402,0.66780539,125.36,125.33,11.15888547]
[1767198843914,119.10037892,125.41,125.33,11.15888547]
[1767198843915,0.66780539,125.37,125.33,11.15888547]
[1767198844982,0.66780539,125.4,125.35,3.17996763]
[1767198845185,0.66780539,125.37,125.35,14.58]
[1767198845897,0.66780539,125.37,125.34,3.17996763]
[1767198845898,0.66780539,125.37,125.34,11.15816743]
[1767198846099,0.66780539,125.37,125.34,25.73816743]
[1767198847706,0.66780539,125.4,125.35,3.17996763]
[1767198847908,0.66780539,125.4,125.36,3.17996763]
[1767198848216,0.66780539,125.4,125.37,3.17996763]
[1767198849514,0.66780539,125.4,125.37,11.15619938]
[1767198849904,0.66780539,125.42,125.38,3.17996763]
[1767198850126,6.60346429,125.41,125.38,3.17996763]
[1767198850409,0.66780539,125.41,125.38,3.17996763]
[1767198850583,0.66780539,125.41,125.39,3.17996763]
[1767198852607,0.86780539,125.43,125.39,11.15476677]
[1767198852849,0.66780539,125.42,125.39,3.17996763]
[1767198852988,0.66780539,125.42,125.38,17.75996763]
[1767198855000,0.66780539,125.42,125.38,22.55569008]
[1767198855206,0.66780539,125.42,125.38,25.73565771]
[1767198857322,3.84777302,125.42,125.38,22.55569008]
[1767198857621,0.66780539,125.41,125.38,22.55569008]
[1767198857808,0.66780539,125.41,125.38,25.73565771]
[1767198861598,0.66780539,125.41,125.38,17.75996763]
[1767198861804,0.66780539,125.41,125.38,14.58]
[1767198861998,0.2,125.43,125.38,14.58]
[1767198861999,3.17996763,125.4,125.38,14.58]
[1767198862199,0.65605437,125.39,125.36,22.55671824]
[1767198862399,0.65605437,125.39,125.36,25.73668587]
[1767198864231,3.17996763,125.37,125.32,7.97932315]
[1767198864418,0.65605437,125.36,125.32,7.97932315]
[1767198864606,0.65605437,125.36,125.32,11.15929078]
[1767198865338,0.65605437,125.35,125.31,25.7398479]
[1767198865526,0.65605437,125.35,125.31,17.75996763]
[1767198865907,0.65605437,125.34,125.31,14.58]
[1767198866433,0.65605437,125.31,125.28,7.98176294]
[1767198866636,0.65605437,125.31,125.28,25.74173057]
[1767198866842,0.65605437,125.33,125.3,7.98074812]
[1767198867126,0.65605437,125.33,125.3,11.16071575]
[1767198867330,0.65605437,125.33,125.29,11.16145058]
[1767198869024,0.65605437,125.33,125.3,11.16069682]
[1767198869598,0.65605437,125.33,125.29,11.16132192]
[1767198870025,0.65605437,125.33,125.3,7.98074279]
[1767198870206,0.65605437,125.33,125.3,11.16071042]
[1767198870405,0.65605437,125.33,125.3,3.17996763]
[1767198870406,0.61576223,125.33,125.3,3.17996763]
[1767198871019,0.61576223,125.33,125.29,11.20143882]
[1767198873239,0.61576223,125.33,125.28,22.56201153]
[1767198873416,0.61576223,125.33,125.28,25.7822713]
[1767198874134,0.61576223,125.33,125.29,3.17996763]
[1767198874341,0.61576223,125.33,125.29,3.22025977]
[1767198875137,0.61576223,125.33,125.28,22.56201153]
[1767198875379,3.836022,125.31,125.26,7.98306312]
[1767198875503,0.65605437,125.3,125.26,25.74303075]
[1767198875908,0.65605437,125.3,125.26,17.75996763]
[1767198876517,0.65605437,125.3,125.26,25.74318464]
[1767198878337,0.65605437,125.3,125.26,25.78347678]
[1767198878648,0.65605437,125.3,125.26,22.56321701]
[1767198878827,0.65605437,125.3,125.26,25.74318464]
[1767198879939,0.65605437,125.3,125.26,25.78347678]
[1767198880346,0.65605437,125.3,125.27,3.17996763]
[1767198880532,0.65605437,125.33,125.29,3.22025977]
[1767198880734,0.65605437,125.33,125.29,17.80025977]
[1767198880936,0.65605437,125.33,125.29,17.75996763]
[1767198881948,0.65605437,125.33,125.29,25.74144697]
[1767198882451,0.65605437,125.32,125.29,14.58]
[1767198882821,0.65605437,125.3,125.25,0.04029214]
[1767198883151,11.15867808,125.34,125.26,3.17996763]
[1767198883152,0.65605437,125.29,125.26,3.17996763]
[1767198883442,0.65605437,125.29,125.27,11.16271991]
[1767198883650,0.65605437,125.31,125.27,11.16271991]
[1767198884435,0.65605437,125.31,125.27,3.17996763]
[1767198884748,0.65605437,125.31,125.26,22.60335278]
[1767198884932,0.65605437,125.3,125.26,17.80025977]
[1767198885626,0.65605437,125.3,125.26,25.78357731]
[1767198886541,0.65605437,125.3,125.26,22.60360968]
[1767198886737,0.65605437,125.3,125.26,25.78357731]
[1767198886937,0.65605437,125.3,125.26,17.80025977]
[1767198887645,0.65605437,125.3,125.26,25.78363849]
[1767198888346,0.65605437,125.3,125.28,3.17996763]
[1767198888524,0.65605437,125.32,125.28,3.17996763]
[1767198890052,0.65605437,125.32,125.27,0.04029214]
[1767198890380,0.65605437,125.31,125.27,3.17996763]
[1767198890654,0.65605437,125.3,125.26,5.01932982]
[1767198890855,0.65605437,125.3,125.26,19.59932982]
[1767198891222,0.65605437,125.3,125.26,27.58261465]
[1767198892127,0.65605437,125.3,125.27,4.97903768]
[1767198892553,4.97903768,125.32,125.28,4.97903768]
[1767198892554,0.71753243,125.32,125.28,4.97903768]
[1767198892727,0.71753243,125.32,125.27,13.00199302]
[1767198892931,0.71753243,125.32,125.27,8.02295534]
[1767198893253,0.71753243,125.32,125.27,13.00199302]
[1767198894726,0.71753243,125.32,125.27,4.97903768]
[1767198894727,4.97903768,125.32,125.27,4.97903768]
[1767198895030,0.71753243,125.3,125.26,27.54217027]
[1767198896251,0.71753243,125.3,125.26,27.58246241]
[1767198898744,0.71753243,125.3,125.26,22.60342473]
[1767198899048,0.71753243,125.3,125.26,27.58246241]
[1767198900353,4.97903768,125.3,125.26,14.58]
[1767198900649,0.71753243,125.29,125.26,14.58]
[1767198900826,0.71753243,125.28,125.24,14.52448693]
[1767198901025,0.71753243,125.28,125.24,6.50002269]
[1767198901246,0.71753243,125.27,125.24,21.08002269]
[1767198901653,0.71753243,125.26,125.24,6.50002269]
[1767198903445,127.08066175,125.31,125.24,11.47906037]
[1767198903446,0.71753243,125.28,125.24,11.47906037]
[1767198904841,0.71753243,125.27,125.24,6.50002269]
[1767198905038,4.97903768,125.26,125.24,6.50002269]
[1767198905255,0.71753243,125.25,125.24,6.50002269]
[1767198905558,0.71753243,125.25,125.24,4.25784726]
[1767198906526,5.69657011,125.25,125.24,4.25784726]
[1767198906952,0.71753243,125.25,125.24,4.25784726]
[1767198908058,0.61753243,125.28,125.24,4.25784726]
[1767198908256,5.59657011,125.26,125.24,4.25784726]
[1767198909573,5.59657011,125.25,125.21,15.25432874]
[1767198909850,0.61753243,125.25,125.21,20.23336642]
[1767198910236,0.61753243,125.25,125.21,15.25432874]
[1767198910457,5.59657011,125.25,125.21,0.70464281]
[1767198910759,4.97903768,125.26,125.22,0.70464281]
[1767198910959,4.97903768,125.26,125.22,0.67495688]
[1767198911164,0.64721836,125.28,125.23,4.97903768]
[1767198911455,5.62625604,125.26,125.21,27.56559753]
[1767198911847,0.64721836,125.28,125.22,4.97903768]
[1767198912049,5.90200608,125.27,125.22,4.97903768]
[1767198912347,5.62625604,125.27,125.22,4.97903768]
[1767198912554,5.62625604,125.25,125.2,14.7]
[1767198912752,5.62625604,125.25,125.2,19.67903768]
[1767198913059,5.62625604,125.25,125.21,0.70464281]
[1767198914036,4.97903768,125.25,125.21,8.69118371]
[1767198914265,5.62625604,125.26,125.22,0.70464281]
[1767198914858,0.64721836,125.26,125.22,0.70464281]
[1767198915040,4.97903768,125.25,125.22,0.67513076]
[1767198915241,0.67673041,125.25,125.2,22.6869168]
[1767198915441,0.67673041,125.25,125.2,19.67903768]
[1767198915657,0.67673041,125.25,125.21,4.97903768]
[1767198916252,5.65576809,125.25,125.2,22.68719604]
[1767198916458,5.65576809,125.25,125.2,27.66623372]
[1767198916962,5.65576809,125.25,125.2,22.68719604]
[1767198917161,5.65576809,125.25,125.21,0.70464281]
[1767198917664,0.67673041,125.25,125.21,0.70464281]
[1767198917866,5.65576809,125.25,125.21,0.70464281]
[1767198918252,4.97903768,125.26,125.22,0.70464281]
[1767198918462,6.58052923,125.25,125.22,0.70464281]
[1767198918647,0.67673041,125.25,125.22,0.70464281]
[1767198918846,5.65576809,125.25,125.21,0.70464281]
[1767198919346,0.67673041,125.27,125.21,0.70464281]
[1767198919661,5.65576809,125.25,125.21,0.70464281]
[1767198920468,5.65576809,125.24,125.21,0.70464281]
[1767198920646,0.67673041,125.24,125.21,0.70464281]
[1767198921367,5.65576809,125.25,125.21,0.70464281]
[1767198921761,4.97903768,125.23,125.2,0.75701545]
[1767198921968,5.65576809,125.24,125.2,0.75701545]
[1767198922356,0.67673041,125.24,125.2,0.75701545]
[1767198922558,0.67673041,125.24,125.21,0.65701545]
[1767198924088,5.65576809,125.24,125.21,0.65701545]
[1767198924366,0.67673041,125.24,125.21,0.65701545]
[1767198924750,5.65576809,125.25,125.21,0.65701545]
[1767198925369,0.67673041,125.25,125.21,0.65701545]
[1767198925560,5.65576809,125.25,125.21,0.65701545]
[1767198926248,4.97903768,125.25,125.21,0.65701545]
[1767198926448,0.67673041,125.24,125.21,0.65701545]
[1767198928556,0.67673041,125.23,125.2,0.1]
[1767198928757,0.67673041,125.23,125.2,0.75701545]
[1767198929258,0.67673041,125.24,125.2,0.75701545]
[1767198929461,5.65576809,125.24,125.2,0.75701545]
[1767198929671,0.67673041,125.24,125.2,0.75701545]
[1767198929872,5.65576809,125.24,125.2,0.75701545]
[1767198930376,0.67673041,125.23,125.2,0.75701545]
[1767198933381,5.65576809,125.23,125.2,0.75701545]
[1767198934274,0.67673041,125.23,125.2,0.75701545]
[1767198934577,5.65576809,125.23,125.2,0.75701545]
[1767198936079,0.67673041,125.21,125.2,0.1]
[1767198936277,5.65576809,125.21,125.2,0.1]
[1767198936454,5.65576809,125.21,125.19,0.1]
[1767198938479,0.57673041,125.2,125.19,0.1]
[1767198939281,5.55576809,125.21,125.19,0.1]
[1767198944557,0.57673041,125.21,125.19,0.1]
[1767198944761,5.55576809,125.21,125.19,0.1]
[1767198946780,4.97903768,125.21,125.19,0.1]
[1767198946984,0.57673041,125.2,125.19,0.1]
[1767198947181,5.55576809,125.2,125.19,0.1]
[1767198947374,5.55576809,125.2,125.17,0.65701545]
[1767198947375,0.47673041,125.19,125.16,0.1]
[1767198947579,5.45576809,125.19,125.16,0.75701545]
[1767198947979,0.37673041,125.21,125.14,8.64776103]
[1767198948289,0.37673041,125.19,125.15,4.97903768]
[1767198948581,0.37673041,125.19,125.16,0.65701545]
[1767198949164,14.6,125.22,125.16,0.65701545]
[1767198949379,0.37673041,125.2,125.16,0.65701545]
[1767198949572,5.35576809,125.2,125.16,0.65701545]
[1767198950182,4.97903768,125.2,125.16,0.65701545]
[1767198950408,14.6,125.22,125.16,12.96860072]
[1767198950587,5.91350373,125.21,125.18,0.65701545]
[1767198950791,3.56828165,125.22,125.18,0.65701545]
[1767198950987,5.91300641,125.21,125.18,0.65701545]
[1767198951192,3.56828165,125.22,125.18,0.65701545]
[1767198951492,6.28945224,125.21,125.18,0.65701545]
[1767198951806,0.37673041,125.21,125.18,0.65701545]
[1767198953001,104.89710933,125.23,125.2,0.65951481]
[1767198954887,104.52037892,125.23,125.2,3.85106605]
[1767198955089,104.52037892,125.23,125.21,3.19155124]
[1767198955273,0.37673041,125.27,125.23,0.65951481]
[1767198955593,5.91786436,125.26,125.23,0.65951481]
[1767198955800,0.37673041,125.27,125.24,0.65951481]
[1767198955966,0.37673041,125.24,125.19,14.6]
[1767198956170,0.37673041,125.24,125.2,3.19155124]
[1767198956372,3.56828165,125.26,125.22,0.65951481]
[1767198956999,0.37673041,125.26,125.23,0.65951481]
[1767198957184,0.37673041,125.27,125.23,0.65951481]
[1767198957497,9.48485485,125.26,125.22,0.65951481]
[1767198957699,0.37673041,125.22,125.18,0.65951481]
[1767198957867,55.77383585,125.28,125.18,7.98838144]
[1767198957868,61.12913597,125.28,125.18,7.98838144]
[1767198958073,0.37673041,125.23,125.19,0.65951481]
[1767198958406,3.56828165,125.24,125.2,0.65951481]
[1767198959874,0.37673041,125.24,125.2,0.65951481]
[1767198960074,3.56828165,125.24,125.2,0.65951481]
[1767198960400,0.37673041,125.26,125.22,0.65951481]
[1767198960610,5.91314346,125.25,125.22,11.17746846]
[1767198960774,0.37673041,125.28,125.24,3.85106605]
[1767198961099,3.89101973,125.27,125.23,0.65951481]
[1767198961395,3.89101973,125.26,125.22,0.65951481]
[1767198961596,3.89101973,125.25,125.22,0.65951481]
[1767198962888,3.19155124,125.27,125.23,0.65951481]
[1767198963093,0.69946849,125.27,125.23,3.85106605]
[1767198963896,0.69946849,125.27,125.24,0.65951481]
[1767198966200,0.69946849,125.29,125.25,0.65951481]
[1767198966383,3.89101973,125.29,125.25,0.65951481]
[1767198966585,3.89101973,125.29,125.19,116.53796818]
[1767198966586,3.89101973,125.26,125.22,0.65951481]
[1767198966791,0.69946849,125.26,125.22,0.65951481]
[1767198966986,3.89101973,125.26,125.22,0.65951481]
[1767198967189,0.69946849,125.26,125.22,3.85106605]
[1767198967886,0.69946849,125.26,125.23,0.65951481]
[1767198968282,0.69946849,125.27,125.24,3.19155124]
[1767198968487,105.21984741,125.28,125.24,3.85106605]
[1767198968681,107.71193016,125.28,125.24,0.65951481]
[1767198968988,0.69946849,125.27,125.24,0.65951481]
[1767198970303,0.69946849,125.29,125.24,3.19155124]
[1767198970510,3.19155124,125.29,125.25,0.65951481]
[1767198970694,0.69946849,125.28,125.24,3.85106605]
[1767198971080,0.69946849,125.28,125.25,0.65951481]
[1767198971283,0.69946849,125.28,125.25,3.85106605]
[1767198971986,14.6,125.3,125.26,3.19155124]
[1767198971987,0.69946849,125.3,125.26,3.19155124]
[1767198972196,0.69946849,125.3,125.27,3.85106605]
[1767198972686,3.89101973,125.32,125.28,0.65951481]
[1767198972983,5.91105283,125.31,125.28,0.65951481]
[1767198973186,5.91105283,125.3,125.28,0.65951481]
[1767198973629,0.69946849,125.29,125.26,0.65951481]
[1767198974107,3.89101973,125.31,125.26,3.19155124]
[1767198974310,5.90920386,125.3,125.27,0.65951481]
[1767198974613,0.69946849,125.3,125.27,0.65951481]
[1767198975208,0.69946849,125.3,125.27,3.85106605]
[1767198975516,0.69946849,125.3,125.27,0.65951481]
[1767198975699,3.89101973,125.3,125.26,0.65951481]
[1767198976601,0.69946849,125.31,125.26,0.65951481]
[1767198976802,0.69946849,125.29,125.26,0.65951481]
[1767198977001,3.19155124,125.29,125.23,22.58485723]
[1767198977204,3.89101973,125.28,125.24,0.65951481]
[1767198977416,3.19155124,125.27,125.24,0.65951481]
[1767198978193,3.89101973,125.26,125.22,0.65951481]
[1767198978611,0.69946849,125.26,125.22,0.65951481]
[1767198978798,3.89101973,125.26,125.22,0.65951481]
[1767198979288,3.89101973,125.26,125.22,3.85106605]
[1767198979289,0.69946849,125.26,125.22,3.85106605]
[1767198981318,0.69946849,125.26,125.22,0.65951481]
[1767198981510,3.89101973,125.26,125.22,0.65951481]
[1767198983821,0.69946849,125.26,125.22,0.65951481]
[1767198984023,3.89101973,125.26,125.22,0.65951481]
[1767198984729,3.19155124,125.26,125.21,7.98657534]